bitfinex/quotes_ETHUSD_20220226
["timestamp","ask_amount","ask_price","bid_price","bid_amount"]
[1645888268039,7.45,2798.1,2797.4,0.517]
[1645888268040,7.45,2798.1,2797.6,0.517]
[1645888268239,7.45,2798.1,2797.7,1.77505319]
[1645888268440,7.45,2798.1,2797.8,0.517]
[1645888268640,0.00532449,2797.9,2797.8,0.517]
[1645888269547,1.02576598,2798.0,2796.8,1.2196]
[1645888269742,0.00342262,2797.9,2796.8,3.5]
[1645888269942,0.1835037,2797.9,2796.8,3.5]
[1645888270145,5.0,2797.6,2796.6,0.25]
[1645888270344,1.0,2797.6,2796.3,7.97511901]
[1645888270544,1.02988815,2796.8,2796.1,1.1791]
[1645888270828,1.02988815,2796.8,2795.9,0.25]
[1645888271033,1.02988815,2796.8,2795.8,0.0692]
[1645888271426,1.02988815,2796.8,2795.3,3.54482866]
[1645888271427,1.50996923,2796.8,2795.3,0.11404866]
[1645888271628,1.50996923,2796.8,2795.4,1.17661706]
[1645888271629,1.09165078,2796.0,2795.4,1.17661706]
[1645888271927,1.09165078,2796.0,2795.1,0.25]
[1645888272128,3.5,2795.9,2795.0,0.00498317]
[1645888272325,6.36539272,2795.8,2795.0,0.00498317]
[1645888272525,3.5,2795.7,2795.0,0.00498317]
[1645888272724,5.017,2795.7,2795.0,0.00498317]
[1645888272925,1.79038,2795.4,2795.0,0.00498317]
[1645888273126,1.71219,2795.4,2794.4,0.25]
[1645888273324,2.01219,2795.4,2795.0,0.00498258]
[1645888273624,2.01919,2795.4,2795.0,0.00498258]
[1645888273823,1.1105486,2795.3,2795.0,0.00498258]
[1645888274227,1.1105486,2795.3,2794.3,0.04657738]
[1645888274746,1.1105486,2795.3,2795.0,0.00498242]
[1645888274747,1.11553043,2795.3,2795.0,0.00498242]
[1645888274945,0.00498183,2795.3,2795.0,0.00498242]
[1645888275551,0.007,2795.4,2794.5,0.04657738]
[1645888275752,0.00500528,2795.3,2795.0,0.00500587]
[1645888275959,0.007,2795.4,2795.3,0.00954488]
[1645888277355,0.007,2795.4,2795.3,0.05612226]
[1645888277553,0.007,2795.4,2795.3,5.47654132]
[1645888278198,0.007,2795.4,2795.3,6.77654132]
[1645888278598,0.007,2795.4,2795.3,3.27654132]
[1645888278801,0.007,2795.4,2795.3,6.77654132]
[1645888279001,0.007,2795.4,2795.3,6.72494132]
[1645888279809,0.007,2795.4,2795.3,1.57312226]
[1645888280018,0.007,2795.4,2795.3,0.00954488]
[1645888281110,1.32647226,2795.4,2795.3,0.00954488]
[1645888282151,12.29647226,2795.4,2795.3,0.00954488]
[1645888282348,12.29647226,2795.4,2793.7,0.04657738]
[1645888282349,17.97,2795.3,2793.7,0.04657738]
[1645888282551,0.89523,2795.2,2793.7,0.04657738]
[1645888282748,0.3034044,2795.1,2793.7,0.04657738]
[1645888282949,0.3034044,2795.1,2793.7,0.94170738]
[1645888283150,0.3034044,2795.1,2793.8,3.5]
[1645888283352,0.3034044,2795.1,2794.0,1.3294989]
[1645888283353,1.40235063,2794.6,2794.0,1.3294989]
[1645888283552,0.0034044,2795.2,2794.0,1.37607628]
[1645888283752,0.8554344,2795.4,2794.0,2.27107628]
[1645888284153,0.8554344,2795.4,2794.0,4.87607628]
[1645888284358,16.77885702,2795.4,2794.5,0.00279909]
[1645888284558,5.80885702,2795.4,2794.5,0.00279909]
[1645888284757,4.95342262,2795.2,2794.5,0.00279909]
[1645888284959,4.39526,2795.1,2794.5,0.00279909]
[1645888285160,4.39526,2795.1,2793.5,0.04657738]
[1645888285362,4.39526,2795.1,2793.4,1.14518]
[1645888285363,10.97,2794.9,2794.7,0.00515521]
[1645888285560,19.42342262,2794.8,2794.7,0.00515521]
[1645888285801,14.77,2794.8,2794.7,0.00515521]
[1645888286004,12.27,2794.8,2794.7,0.00515521]
[1645888286202,1.3,2794.8,2794.7,0.00515521]
[1645888286405,1.3,2794.8,2793.8,1.20309112]
[1645888286406,1.0,2794.8,2793.8,1.20309112]
[1645888286605,2.97432158,2795.0,2794.1,0.04657738]
[1645888286606,1.38446749,2794.5,2794.1,0.04657738]
[1645888286802,1.38446749,2794.5,2793.6,0.04657738]
[1645888287302,1.38446749,2794.5,2793.5,0.04657738]
[1645888287904,15.47,2794.8,2793.9,0.00500564]
[1645888288104,1.0,2794.8,2793.9,0.00500564]
[1645888288305,14.47,2794.7,2793.9,0.00500564]
[1645888288504,15.47,2794.7,2793.9,0.00500564]
[1645888288708,15.92342262,2794.3,2793.0,0.25]
[1645888288908,14.47,2794.2,2792.7,7.1614]
[1645888289105,10.97,2793.9,2792.7,7.1614]
[1645888289305,3.5,2793.8,2792.7,7.1614]
[1645888289771,1.03460486,2793.0,2792.7,7.1614]
[1645888290570,3.5,2792.9,2792.7,7.1614]
[1645888290767,1.03460486,2793.0,2792.7,7.1614]
[1645888291368,1.03460486,2793.0,2792.7,7.16641742]
[1645888291569,3.5,2792.9,2792.7,7.16641742]
[1645888291769,3.5,2792.9,2792.2,0.25]
[1645888291770,7.0,2792.8,2792.2,0.25]
[1645888291968,0.89594,2792.6,2791.5,1.0]
[1645888292168,0.89594,2792.6,2791.4,0.04657738]
[1645888292169,3.5,2792.5,2791.4,0.04657738]
[1645888292368,0.89594,2792.6,2791.4,0.04657738]
[1645888292570,4.5,2792.7,2791.4,0.04657738]
[1645888292571,1.12830156,2792.1,2791.4,0.04657738]
[1645888292770,4.5,2792.7,2791.4,0.04657738]
[1645888292972,1.0,2792.7,2791.4,0.04657738]
[1645888293202,3.5,2792.7,2791.4,0.04657738]
[1645888293608,4.5,2792.7,2791.4,0.04657738]
[1645888293809,1.35454049,2792.1,2791.1,1.18967738]
[1645888294010,1.35454049,2792.1,2791.1,1.04657738]
[1645888294309,1.35454049,2792.1,2791.1,0.04657738]
[1645888294709,1.23903078,2791.6,2791.1,0.04657738]
[1645888294910,4.5,2792.3,2791.1,0.04657738]
[1645888294911,3.5,2792.2,2791.1,0.04657738]
[1645888295110,1.0,2792.1,2791.1,0.04657738]
[1645888295312,0.89615,2791.9,2791.1,0.04657738]
[1645888295516,4.5,2792.2,2791.1,0.04657738]
[1645888296111,1.27745988,2791.8,2791.1,0.04657738]
[1645888297148,1.27745988,2791.8,2790.9,0.21865452]
[1645888297347,1.27745988,2791.8,2790.9,0.07555452]
[1645888297751,1.27745988,2791.8,2790.8,0.27430365]
[1645888297951,2.16740675,2791.7,2790.8,0.27430365]
[1645888298151,1.27745988,2791.8,2790.8,0.27430365]
[1645888298350,2.16755224,2791.7,2790.8,0.27430365]
[1645888298648,2.16755224,2791.7,2791.1,0.0053365]
[1645888298649,1.23918581,2791.2,2791.1,0.0053365]
[1645888298848,3.06481382,2791.7,2791.1,0.0053365]
[1645888298849,1.89622,2791.7,2791.1,0.0053365]
[1645888299251,0.89622,2791.7,2791.1,0.0053365]
[1645888299649,0.89622,2791.7,2790.8,0.27430365]
[1645888299850,0.89622,2791.7,2791.3,0.00533634]
[1645888300050,1.13954309,2791.4,2791.3,0.00533634]
[1645888300450,0.89622,2791.7,2791.3,0.00533634]
[1645888300913,0.89622,2791.7,2790.8,0.27430365]
[1645888301109,0.89622,2791.7,2791.4,0.00533623]
[1645888301508,1.39870519,2791.6,2791.4,0.00533623]
[1645888302212,1.39870519,2791.6,2790.8,0.27430365]
[1645888302213,11.86632,2791.5,2790.8,0.27430365]
[1645888302410,11.86632,2791.5,2791.4,0.00533623]
[1645888302610,10.97,2791.3,2790.3,0.25]
[1645888302809,1.0,2791.5,2789.9,0.1433]
[1645888302810,10.97,2791.0,2789.9,0.1433]
[1645888303214,0.89672,2790.6,2789.9,0.1433]
[1645888303409,0.89672,2790.6,2789.8,0.9248003]
[1645888304310,0.89671,2790.5,2789.8,0.9248003]
[1645888304566,1.793415,2790.5,2789.8,0.9248003]
[1645888305163,1.18008108,2791.3,2789.9,3.5]
[1645888305164,1.0,2791.3,2789.9,3.5]
[1645888305375,11.07226,2791.6,2790.4,0.04657738]
[1645888305564,7.20436,2791.6,2790.4,0.04657738]
[1645888305771,7.20436,2791.6,2790.3,0.04657738]
[1645888305772,0.89626,2791.6,2790.3,0.04657738]
[1645888305970,12.29626,2791.6,2789.8,0.9248003]
[1645888306170,12.76335,2790.8,2789.8,0.9248003]
[1645888306568,0.89668,2790.7,2789.8,0.9248003]
[1645888306769,1.19668,2790.7,2789.8,0.9248003]
[1645888306970,1.27028934,2790.1,2789.8,0.9248003]
[1645888308303,1.27028934,2790.1,2789.8,0.93013443]
[1645888308700,3.06394934,2790.1,2789.8,0.93013443]
[1645888309105,10.97,2790.0,2789.8,0.93013443]
[1645888309402,1.0,2790.0,2789.8,0.9248003]
[1645888309602,1.0,2790.0,2789.8,0.93013443]
[1645888309801,4.06394934,2790.1,2789.8,0.93013443]
[1645888310406,4.06394934,2790.1,2789.8,0.9248003]
[1645888310606,1.27028934,2790.1,2789.8,0.9248003]
[1645888310813,2.27028934,2790.1,2789.8,0.93013443]
[1645888311008,1.27028934,2790.1,2789.8,0.93013443]
[1645888311611,1.27028934,2790.1,2789.8,0.9248003]
[1645888312042,1.27028934,2790.1,2789.8,0.93013443]
[1645888312844,1.27028934,2790.1,2789.8,0.9248003]
[1645888314452,1.27028934,2790.1,2789.8,0.93013773]
[1645888315252,1.27028934,2790.1,2789.8,0.9248003]
[1645888315554,2.46709934,2790.1,2789.8,0.93013773]
[1645888315814,2.76709934,2790.1,2789.8,0.93013773]
[1645888316017,9.35445559,2790.0,2789.8,0.93013773]
[1645888316212,0.896839,2790.0,2789.8,0.93013773]
[1645888316413,0.896839,2790.0,2789.8,0.9248003]
[1645888316414,1.896839,2790.0,2789.8,0.9248003]
[1645888316815,0.896839,2790.0,2789.8,0.93013778]
[1645888317815,0.896839,2790.0,2789.8,0.9248003]
[1645888318016,0.896839,2790.0,2789.8,0.93013778]
[1645888318215,3.76709934,2790.1,2789.8,0.93013778]
[1645888318417,2.87028934,2790.1,2789.8,0.93013778]
[1645888318816,2.57028934,2790.1,2789.8,0.9248003]
[1645888319215,2.57028934,2790.1,2789.8,0.93013773]
[1645888319469,2.27028934,2790.1,2789.8,0.93013773]
[1645888319659,1.57028934,2790.1,2789.8,0.93013773]
[1645888319860,3.36387954,2790.1,2789.8,0.93013773]
[1645888320059,3.66387954,2790.1,2789.8,0.9248003]
[1645888320259,4.66387954,2790.1,2789.8,0.9248003]
[1645888320460,4.66387954,2790.1,2789.8,0.93013773]
[1645888321273,5.56079954,2790.1,2789.8,0.9248003]
[1645888321471,16.78079954,2790.1,2789.8,0.9248003]
[1645888321665,17.03457631,2790.1,2789.8,0.93013773]
[1645888321875,21.98799893,2790.1,2789.8,0.93013773]
[1645888322071,10.97,2789.9,2789.8,0.93013773]
[1645888322273,12.27,2789.9,2789.8,0.93013773]
[1645888322470,12.27,2789.9,2789.8,0.9248003]
[1645888323412,17.97,2789.8,2789.7,0.00533754]
[1645888323614,17.97,2789.8,2788.6,0.0037732]
[1645888323615,24.41866589,2789.8,2788.6,0.0037732]
[1645888323815,12.76431,2789.6,2788.6,0.0037732]
[1645888324010,0.89713,2789.4,2789.3,0.02135335]
[1645888324413,12.90426903,2789.4,2789.3,0.02135335]
[1645888324811,1.0,2789.4,2789.3,0.02135335]
[1645888325012,1.0,2789.4,2788.6,3.5037732]
[1645888325212,2.3941981,2789.5,2788.3,0.18997738]
[1645888325213,2.3941981,2789.5,2788.4,0.0037732]
[1645888325620,12.46707,2789.5,2788.4,0.0037732]
[1645888325818,13.46707,2789.5,2788.4,0.0037732]
[1645888326018,13.46707,2789.5,2788.2,0.1434]
[1645888326019,13.46707,2789.5,2788.3,1.51483337]
[1645888326221,0.8970872,2789.2,2788.4,3.6434]
[1645888326424,2.49707,2789.5,2788.8,0.0053348]
[1645888326425,1.16940403,2789.3,2788.8,0.0053348]
[1645888326622,1.46940403,2789.3,2788.8,0.0053348]
[1645888326821,0.3,2789.3,2788.8,0.0053348]
[1645888327248,0.3,2789.4,2788.4,0.02134238]
[1645888327452,1.0,2789.9,2789.0,0.04657738]
[1645888327848,1.0,2789.9,2789.3,1.12476813]
[1645888328149,3.0881,2790.3,2789.1,0.1433]
[1645888328348,19.01152262,2790.3,2789.1,0.1433]
[1645888328550,0.89688,2789.8,2789.0,0.1433]
[1645888328750,0.89688,2789.8,2789.6,0.00500729]
[1645888329150,2.24465961,2789.8,2789.6,0.00500729]
[1645888329749,2.24465961,2789.8,2788.8,0.1434]
[1645888329951,2.24465961,2789.8,2789.6,0.00500729]
[1645888330352,0.89688,2789.8,2789.6,0.00500729]
[1645888331096,0.89688,2789.8,2788.8,0.1433]
[1645888331297,0.89688,2789.8,2789.6,0.00500729]
[1645888332198,0.89688,2789.8,2788.8,0.1433]
[1645888332398,0.89688,2789.8,2789.6,0.00502919]
[1645888332599,1.31045517,2789.7,2789.6,0.00502919]
[1645888333400,1.31045517,2789.7,2788.7,0.19365058]
[1645888333598,1.31045517,2789.7,2788.8,1.5147552]
[1645888333801,0.89697,2789.6,2789.5,0.00502924]
[1645888334201,1.19697,2789.6,2789.5,0.00502924]
[1645888334644,1.19697,2789.6,2788.7,0.1470732]
[1645888334844,0.3,2789.5,2789.4,0.00502935]
[1645888335646,0.3,2789.5,2788.6,0.05035058]
[1645888335849,0.3,2789.5,2788.7,1.51477674]
[1645888336048,0.3,2789.5,2789.3,0.00502798]
[1645888336254,14.05858771,2789.7,2789.3,0.00502798]
[1645888336452,11.86707,2789.6,2789.3,0.00502798]
[1645888336854,12.86707,2789.6,2789.3,0.00502798]
[1645888337052,12.86707,2789.6,2788.4,0.0037732]
[1645888337252,12.86707,2789.6,2789.3,0.00502798]
[1645888337552,10.97,2789.5,2789.3,0.00502798]
[1645888337751,11.97,2789.5,2789.3,0.00502798]
[1645888338192,12.27,2789.5,2788.4,0.0037732]
[1645888338395,12.27,2789.5,2789.3,0.00469005]
[1645888338594,14.9612412,2789.5,2789.3,0.00469005]
[1645888338793,15.2612412,2789.5,2789.3,0.00469005]
[1645888339497,1.32344513,2789.2,2788.8,0.01876343]
[1645888339693,0.89705,2789.4,2788.9,1.51488694]
[1645888339893,0.3,2789.2,2788.9,1.51488694]
[1645888340297,1.19705,2789.4,2788.8,0.01876343]
[1645888340298,4.95342262,2789.0,2788.8,0.01876343]
[1645888340496,4.95342262,2789.0,2788.4,0.0037732]
[1645888340497,14.9,2788.9,2788.4,0.0037732]
[1645888340696,14.9,2788.9,2788.0,0.0037732]
[1645888340697,15.92342262,2788.7,2788.0,0.0037732]
[1645888340900,10.97,2788.6,2788.5,0.01876474]
[1645888341102,11.27,2788.6,2788.5,0.01876474]
[1645888341400,12.27,2788.6,2788.5,0.01876474]
[1645888341600,13.57042857,2788.6,2788.5,0.01876474]
[1645888341798,13.57042857,2788.6,2788.0,0.0037732]
[1645888341799,14.66720851,2788.6,2788.0,0.0037732]
[1645888342056,5.17993708,2788.4,2788.0,0.01876662]
[1645888342255,6.47993708,2788.4,2788.0,0.01876662]
[1645888342454,1.52651446,2788.4,2788.0,0.01876662]
[1645888342856,0.3,2788.4,2787.9,0.9]
[1645888343254,4.8,2788.5,2787.9,0.9]
[1645888343455,5.69751,2788.5,2787.9,0.9]
[1645888343655,1.79501,2788.3,2787.9,0.9]
[1645888343856,2.69252,2788.3,2787.9,0.9]
[1645888344059,1.08902687,2788.1,2787.9,0.9]
[1645888344257,0.3,2788.2,2787.9,0.9]
[1645888344757,0.8974861,2788.1,2787.9,0.9]
[1645888345360,7.0,2787.9,2787.3,0.67109502]
[1645888345560,7.0,2787.9,2787.1,0.67109502]
[1645888345561,16.45342262,2787.9,2787.1,0.67109502]
[1645888345801,17.71880242,2787.7,2786.5,0.81449502]
[1645888346004,17.71880242,2787.7,2786.5,0.1434]
[1645888346200,0.8976845,2787.5,2786.5,0.1434]
[1645888346402,2.7953798,2787.7,2786.9,0.04092649]
[1645888346403,1.0,2787.7,2786.9,0.04092649]
[1645888346600,2.43,2788.1,2787.3,0.04657738]
[1645888346601,3.0,2788.1,2787.3,0.04657738]
[1645888346801,2.69287,2788.3,2787.1,0.14856656]
[1645888346802,0.3,2788.2,2787.1,0.14856656]
[1645888347001,1.0,2788.1,2787.1,0.14856656]
[1645888347204,1.0,2788.1,2787.1,0.00516656]
[1645888347205,4.95342262,2787.8,2787.1,0.00516656]
[1645888347402,17.36772,2787.7,2787.1,0.00516656]
[1645888347601,0.2386753,2787.5,2787.1,0.00516656]
[1645888347801,0.2386753,2787.5,2786.9,0.04092649]
[1645888347802,0.35674,2787.4,2786.9,0.04092649]
[1645888348003,0.35674,2787.4,2786.9,0.061595]
[1645888348004,4.95342262,2787.1,2786.9,0.061595]
[1645888348403,0.23293264,2787.0,2786.9,0.02066851]
[1645888348706,20.0165095,2787.1,2786.9,0.02066851]
[1645888348904,20.0165095,2787.1,2786.9,0.04092649]
[1645888348905,15.36791,2787.0,2786.9,0.04092649]
[1645888349105,15.36791,2787.0,2785.9,0.1434]
[1645888349106,17.97,2786.9,2785.9,0.1434]
[1645888349307,23.35456623,2786.9,2786.8,0.00516688]
[1645888349572,27.08456623,2786.9,2786.8,0.00516688]
[1645888349763,10.80442063,2786.9,2786.8,0.00516688]
[1645888349961,6.5679144,2786.9,2786.8,0.00516688]
[1645888350167,6.5679144,2786.9,2785.7,0.1434]
[1645888350168,11.91375015,2786.9,2785.7,0.1434]
[1645888350367,12.21375015,2786.9,2785.5,0.1434]
[1645888350567,12.21375015,2786.9,2785.5,0.81449502]
[1645888350765,12.21375015,2786.9,2785.5,0.1434]
[1645888351169,1.43575823,2786.5,2785.5,1.25443558]
[1645888351377,1.43575823,2786.5,2785.1,4.0722]
[1645888351378,4.95342262,2786.0,2785.0,1.3298]
[1645888351570,4.95342262,2786.0,2785.1,0.00383082]
[1645888351571,3.5,2785.9,2785.1,0.00383082]
[1645888351771,23.94133432,2786.0,2785.8,0.01995623]
[1645888351968,16.2,2785.9,2785.8,0.01995623]
[1645888352168,3.05035352,2786.1,2785.8,0.01995623]
[1645888352470,3.84265,2786.9,2785.9,0.04657738]
[1645888352471,1.1479,2786.9,2785.9,0.04657738]
[1645888352666,1.1479,2786.9,2785.8,0.14723082]
[1645888352667,0.3,2786.9,2785.8,0.14723082]
[1645888352868,0.8977861,2787.2,2785.8,3.64723082]
[1645888353069,0.8977861,2787.2,2786.5,0.04657738]
[1645888353070,0.5,2787.0,2786.5,0.04657738]
[1645888353301,0.5,2787.0,2786.4,0.00383082]
[1645888353501,1.94999646,2787.2,2786.1,0.04657738]
[1645888353702,1.94999646,2787.2,2786.4,0.04657738]
[1645888353703,0.143715,2787.0,2786.4,0.04657738]
[1645888353902,0.143715,2787.0,2786.9,0.04657738]
[1645888354110,5.0817,2787.7,2786.8,1.2046]
[1645888354111,1.0,2787.7,2786.8,1.2046]
[1645888354311,1.0,2787.7,2786.9,3.50383082]
[1645888354508,0.8975869,2787.8,2786.9,0.00383082]
[1645888354708,1.05460077,2787.6,2786.5,0.0504082]
[1645888354906,0.89774,2787.5,2786.6,0.00383082]
[1645888355110,0.89774,2787.5,2786.2,0.04657738]
[1645888355111,10.97,2787.4,2786.4,0.00383082]
[1645888355306,10.97,2787.3,2786.2,0.00383082]
[1645888355706,10.97,2787.3,2785.9,4.9303082]
[1645888355707,16.47,2787.2,2785.9,4.9303082]
[1645888355910,0.89787,2787.1,2785.8,1.5542]
[1645888356109,0.89787,2787.1,2785.8,1.1608]
[1645888356110,0.89783,2787.0,2785.8,1.1608]
[1645888356310,1.19783,2787.0,2785.8,2.55575428]
[1645888356511,1.19783,2787.0,2786.4,0.0053031]
[1645888356512,0.3,2786.8,2786.4,0.0053031]
[1645888356949,0.3,2786.9,2786.4,0.0053031]
[1645888357349,0.3,2786.9,2785.6,0.1434]
[1645888357350,10.97,2786.7,2785.6,0.1434]
[1645888357555,10.97,2786.7,2786.1,0.02121518]
[1645888357556,10.97,2786.5,2786.1,0.02121518]
[1645888357753,11.97,2786.5,2786.1,0.02121518]
[1645888357950,12.27,2786.5,2786.1,0.02121518]
[1645888358551,12.27,2786.5,2785.6,1.24145884]
[1645888358752,13.16806,2786.5,2786.2,0.00292939]
[1645888358952,10.97,2786.3,2786.2,0.00292939]
[1645888359354,12.27,2786.3,2786.2,0.00292939]
[1645888359751,12.27,2786.3,2785.3,0.25]
[1645888359752,1.3,2786.3,2785.3,0.25]
[1645888359952,2.42599872,2786.3,2786.1,0.00292945]
[1645888360153,0.89806,2786.2,2786.1,0.00292945]
[1645888360357,1.19806,2786.2,2786.1,0.00292945]
[1645888360555,12.46806,2786.2,2786.1,0.00292945]
[1645888360803,1.49806,2786.2,2786.1,0.00292945]
[1645888361005,2.49806,2786.2,2785.0,0.1434]
[1645888361203,0.8981322,2786.0,2785.6,0.02122302]
[1645888361403,0.3,2786.1,2785.6,0.02122302]
[1645888361404,0.3,2786.1,2786.0,0.71962161]
[1645888361608,11.27,2786.1,2786.0,0.46962161]
[1645888361911,0.3,2786.1,2786.0,0.46962161]
[1645888362308,2.69427,2786.7,2786.0,0.46962161]
[1645888362309,0.89787,2787.1,2786.0,0.46962161]
[1645888362511,0.89791,2787.3,2786.0,0.46962161]
[1645888362512,2.0,2787.3,2786.1,0.00380889]
[1645888362707,0.2346045,2787.1,2786.1,0.00380889]
[1645888362909,11.487,2787.2,2786.1,0.00380889]
[1645888362910,10.97,2786.9,2786.1,0.00380889]
[1645888363108,10.97,2786.9,2786.0,0.46962161]
[1645888363309,0.89805,2786.5,2786.0,0.46962161]
[1645888363509,0.89805,2786.4,2786.0,0.46962161]
[1645888363911,0.89805,2786.4,2786.0,1.83422426]
[1645888364309,0.89805,2786.4,2786.0,0.46962161]
[1645888364852,0.89805,2786.4,2786.1,0.00530491]
[1645888365653,1.7960955,2786.4,2786.0,0.46962161]
[1645888365857,0.3,2786.3,2786.0,0.46962161]
[1645888366058,0.3,2786.3,2786.1,0.00530485]
[1645888367057,0.89805,2786.4,2786.0,0.46962161]
[1645888367455,0.89805,2786.4,2786.1,0.00530491]
[1645888368061,0.89805,2786.4,2786.0,0.46962161]
[1645888368511,0.89792,2786.6,2786.1,0.00495745]
[1645888369308,0.89792,2786.6,2786.0,0.46962161]
[1645888369507,0.89792,2786.6,2786.2,0.00495735]
[1645888370513,0.89792,2786.6,2786.0,0.46962161]
[1645888370914,0.89792,2786.6,2786.3,0.00495731]
[1645888371715,0.89792,2786.6,2786.0,1.56368259]
[1645888371951,0.89792,2786.6,2786.3,0.00495726]
[1645888372955,0.89792,2786.6,2786.0,1.56368259]
[1645888373158,0.89792,2786.6,2786.3,0.0049807]
[1645888374056,0.89792,2786.6,2786.0,1.56368259]
[1645888374455,0.89792,2786.6,2786.3,0.0049807]
[1645888375258,0.89792,2786.6,2786.0,0.46962161]
[1645888375712,2.0,2787.1,2786.3,0.0049807]
[1645888375909,1.2075,2787.6,2786.3,0.0049807]
[1645888376106,2.0,2787.7,2786.3,0.0049807]
[1645888376306,2.0,2787.7,2786.5,0.3594]
[1645888376508,1.00906732,2788.4,2786.6,3.86320889]
[1645888376705,0.06264545,2788.1,2787.3,1.10293308]
[1645888376907,0.143677,2787.7,2786.7,1.20030889]
[1645888377108,0.143677,2787.7,2786.9,0.00497861]
[1645888377307,11.93012605,2788.1,2786.9,0.00497861]
[1645888377308,0.89749,2788.0,2786.9,0.00497861]
[1645888377709,0.89749,2788.0,2786.8,3.50380889]
[1645888377908,11.86761,2787.9,2786.8,0.00380889]
[1645888378111,12.06896696,2787.8,2787.3,0.00497819]
[1645888378411,13.06896696,2787.8,2787.3,0.00497819]
[1645888379008,15.86443696,2787.8,2786.8,0.00380889]
[1645888379209,15.86443696,2787.8,2787.4,0.00497809]
[1645888379464,0.89772,2787.6,2787.4,0.00497809]
[1645888380266,0.897732,2787.4,2786.6,0.00380889]
[1645888380464,1.197732,2787.4,2786.9,0.01932062]
[1645888380668,2.395482,2787.4,2786.9,0.01932062]
[1645888381271,13.365482,2787.4,2786.6,0.00380889]
[1645888381471,0.18008108,2787.3,2786.6,0.00380889]
[1645888381671,0.18008108,2787.3,2787.0,0.00482976]
[1645888381672,10.97,2787.1,2787.0,0.00482976]
[1645888381873,11.487,2787.1,2787.0,0.00482976]
[1645888382069,12.66708108,2787.1,2787.0,0.00482976]
[1645888382266,14.10141118,2787.1,2787.0,0.00482976]
[1645888382670,0.89791,2786.9,2786.1,0.00380889]
[1645888382868,11.8678891,2786.8,2786.5,0.0193223]
[1645888383070,12.1678891,2786.8,2786.5,0.0193223]
[1645888383312,17.987,2786.7,2786.1,0.00380889]
[1645888383509,10.97,2786.6,2786.0,0.46962161]
[1645888383716,10.97,2786.4,2786.0,0.46962161]
[1645888384112,11.27,2786.4,2786.0,0.46962161]
[1645888384309,12.27,2786.4,2786.0,0.46962161]
[1645888384709,1.143756,2786.4,2786.0,0.46962161]
[1645888384910,1.0,2786.4,2786.0,0.46962161]
[1645888385110,1.0,2786.5,2786.4,0.61761382]
[1645888385312,1.14944124,2786.6,2786.4,0.61761382]
[1645888385508,2.0,2786.7,2786.4,0.61761382]
[1645888385711,10.97,2786.6,2786.4,0.61761382]
[1645888386113,11.27,2786.6,2786.4,0.61761382]
[1645888386319,11.86805,2786.5,2786.4,0.61761382]
[1645888386715,12.86805,2786.5,2786.4,0.61761382]
[1645888386952,13.04813108,2786.5,2786.4,0.61761382]
[1645888387153,13.56513108,2786.5,2786.4,0.61761382]
[1645888387852,14.648635,2786.5,2786.4,0.61761382]
[1645888389356,18.97,2786.4,2786.3,0.00291527]
[1645888389555,19.787,2786.4,2786.3,0.00291527]
[1645888389754,20.96708108,2786.4,2786.0,0.46962161]
[1645888389955,10.97,2786.2,2786.0,0.46962161]
[1645888390156,11.27,2786.2,2786.0,0.46962161]
[1645888390356,12.45008108,2786.2,2786.0,0.46962161]
[1645888390559,12.27,2786.2,2786.0,0.46962161]
[1645888390817,13.16813,2786.2,2786.0,0.46962161]
[1645888391217,13.16813,2786.2,2786.0,0.47492858]
[1645888391622,11.487,2786.1,2786.0,0.47492858]
[1645888391820,11.487,2786.1,2786.0,2.858e-05]
[1645888391821,11.84374,2786.1,2786.0,2.858e-05]
[1645888392017,13.23229223,2786.1,2786.0,2.858e-05]
[1645888392218,13.23229223,2786.1,2785.2,0.00380889]
[1645888392219,1.0,2786.0,2785.2,0.00380889]
[1645888392420,1.0,2786.0,2785.1,0.1434]
[1645888392421,10.97,2785.5,2785.1,0.1434]
[1645888392620,12.1684344,2785.5,2785.2,1.52084417]
[1645888392820,1.10318201,2785.4,2784.9,0.00380889]
[1645888393020,13.4684344,2785.5,2784.9,1.51704103]
[1645888393219,13.1684344,2785.5,2785.0,1.51704103]
[1645888393430,14.0669144,2785.5,2785.1,1.51704103]
[1645888393627,14.0669144,2785.5,2784.9,1.52084992]
[1645888393826,14.0669144,2785.5,2784.9,1.51704103]
[1645888394032,14.0669144,2785.5,2785.0,1.51704103]
[1645888394233,14.0669144,2785.5,2785.1,1.51704103]
[1645888394468,11.86843,2785.3,2785.2,1.51704103]
[1645888394671,11.86843,2785.3,2784.9,0.00380889]
[1645888394875,11.86843,2785.3,2784.6,1.51704103]
[1645888394876,0.8984,2785.2,2784.7,0.1436]
[1645888395073,0.8984,2785.2,2784.8,1.51704103]
[1645888395474,0.8984,2785.2,2784.9,1.51704103]
[1645888395674,0.8984,2785.2,2785.0,1.51704103]
[1645888395875,0.8984,2785.2,2785.1,1.51704103]
[1645888396778,6.17940654,2785.6,2785.1,1.51704103]
[1645888396779,1.0,2785.7,2785.1,1.51704103]
[1645888396976,11.86824,2785.9,2785.2,1.51704103]
[1645888397175,10.97,2785.9,2785.3,1.51704103]
[1645888397376,2.0,2786.1,2785.4,1.51704103]
[1645888397574,2.0,2786.1,2785.1,1.66044103]
[1645888397787,2.6941825,2786.4,2785.9,1.08823579]
[1645888397978,2.6941825,2786.4,2785.4,3.64720889]
[1645888398203,13.6641825,2786.4,2785.5,1.51668012]
[1645888398601,13.6641825,2786.4,2785.9,0.00497395]
[1645888398806,15.5623225,2786.4,2785.9,0.00497395]
[1645888399008,16.95251914,2786.4,2785.9,0.00497395]
[1645888399206,0.3,2786.3,2785.9,0.00497395]
[1645888399412,0.3,2786.3,2785.6,0.00380889]
[1645888399413,12.16803,2786.3,2785.6,0.00380889]
[1645888399610,0.8981335,2786.1,2785.9,0.00497395]
[1645888400007,1.1981335,2786.1,2785.9,0.00497395]
[1645888400208,0.8981335,2786.1,2785.9,0.00497395]
[1645888400506,0.8981335,2786.1,2785.2,0.00380889]
[1645888400708,1.7962435,2786.1,2785.5,1.14921448]
[1645888400908,1.7962435,2786.1,2785.9,0.00497382]
[1645888401111,12.7662435,2786.1,2785.9,0.00497382]
[1645888401311,13.7662435,2786.1,2785.9,0.00497382]